Cogmind - Beta 16 @@@ ROGUE MODE // 2025.12.21 @ 15:39:17 Player: mirus Result: Destroyed by L-41 Fighter with Axe Performance ------------- Evolutions (4) 2000 Regions Visited (6) 1200 Robots Destroyed (47) 235 Value Destroyed (1602) 1602 Prototype IDs (1) 20 Alien Tech Used (0) 0 Bonus (237) 237 TOTAL SCORE: 5294 Bonus ------- Pacifist 200 Follower Combat Kills 37 Cogmind --------- Core Integrity 0/850 Matter 500/500 Energy 150/150 System Corruption 1% Temperature Cool (0) Movement Walking (120) Location -6/Extension Parts ------- > --- POWER (2) -------- Light Angular Momentum Engine > --- PROPULSION (4) --- Myomer Leg Myomer Leg Myomer Leg > --- UTILITY (6) ------ Medium Storage Unit Large Storage Unit High-capacity Matter Pod Improved Terrain Scan Processor Improved Light Armor Plating > --- WEAPON (3) ------- Axe > --- INVENTORY (15) --- Light Ion Engine Light Treads Compact Wheel Compact Wheel Backup Propulsion I Peak State ------------ > --- POWER ------------ Improved Ion Engine Light Angular Momentum Engine > --- PROPULSION ------- Carbon-fiber Leg Myomer Leg Myomer Leg Myomer Leg > --- UTILITY ---------- Improved Heat Sink Medium Storage Unit Large Storage Unit High-capacity Matter Pod Improved Terrain Scan Processor Improved Light Armor Plating > --- WEAPON ----------- Axe > --- INVENTORY -------- Light Ion Engine Light Treads Compact Wheel Compact Wheel Backup Propulsion I [Rating: 46] Favorites ----------- Power Improved Ion Engine Engine Improved Ion Engine Propulsion Advanced Treads Treads Advanced Treads Leg Titanium Leg Wheel Wheel Hover Unit Backup Propulsion I Flight Unit Flight Unit Utility Large Storage Unit Device Trap Scanner Storage Large Storage Unit Processor Visual Processing Unit Protection Hardened Heavy Armor Plating Weapon Light Assault Rifle Energy Gun Small Laser Ballistic Gun Light Assault Rifle Ballistic Cannon Assault Cannon Launcher Missile Launcher Impact Weapon Heavy Mace Slashing Weapon Axe Build | -11 -10 -9 -8 -7 -6 -6 ------- Run | Yrd Mat Mat Mat Fac Fac Ext Slots Evolved 8 | . . 2 2 2 2 . Power 1 | . . . . 1 . . Propulsion 2 | . . . 1 . 1 . Utility 4 | . . 2 1 . 1 . Weapon 1 | . . . . 1 . . Parts Attached 66 | 6 1 11 21 6 7 14 Power 9 | 1 . 2 1 1 2 2 Engine 9 | 1 . 2 1 1 2 2 Core . | . . . . . . . Reactor . | . . . . . . . Propulsion 25 | 2 . 2 11 2 . 8 Treads 8 | 2 . . 3 2 . 1 Leg 9 | . . . 5 . . 4 Wheel 3 | . . . 1 . . 2 Hover 1 | . . . . . . 1 Flight 4 | . . 2 2 . . . Utility 23 | 1 1 6 5 3 3 4 Device 6 | . 1 1 2 1 . 1 Storage 5 | 1 . 1 . . 1 2 Processor 5 | . . 2 1 1 1 . Hackware . | . . . . . . . Protection 7 | . . 2 2 1 1 1 Artifact . | . . . . . . . Weapon 9 | 2 . 1 4 . 2 . Energy Gun 2 | 1 . 1 . . . . Energy Cannon . | . . . . . . . Ballistic Gun 3 | 1 . . 1 . 1 . Ballistic Cannon 1 | . . . . . 1 . Launcher 1 | . . . 1 . . . Special Weapon . | . . . . . . . Impact Weapon 1 | . . . 1 . . . Slashing Weapon 1 | . . . 1 . . . Piercing Weapon . | . . . . . . . Special Melee Weapon . | . . . . . . . Unidentified Prototypes 1 | . . . 1 . . . Parts Lost 33 | . . . 11 . 13 9 Power 6 | . . . 1 . 2 3 Propulsion 10 | . . . 4 . 3 3 Utility 10 | . . . 3 . 4 3 Weapon 7 | . . . 3 . 4 . Highest Loss Streak 6 | . . . 4 . 6 5 To Critical Strikes . | . . . . . . . Average Backups 6 | 1 2 7 8 9 7 3 Power 1 | . 1 1 1 1 1 1 Propulsion 2 | . . 2 3 4 3 1 Utility 1 | . . 2 2 2 2 . Weapon . | . 1 1 . 1 1 . Tool/Special . | . . . . . . . Unused Backups 1 | . . 1 . . . . Power . | . . . . . . . Propulsion . | . . . . . . . Utility 1 | . . 1 . . . . Weapon . | . . . . . . . Tool/Special . | . . . . . . . Average Slot Usage (%) 85 | . 88 99 87 95 79 67 Engine 11 | . 14 11 8 15 12 11 Treads 12 | . 28 18 4 22 17 1 Leg 3 | . . . 8 . . 4 Flight 2 | . . . 7 . . 5 Device 13 | . 3 17 15 15 14 5 Storage 10 | . 14 11 9 7 7 18 Processor 7 | . . 10 10 4 4 6 Protection 3 | . . 4 4 7 3 2 Energy Gun 3 | . 14 11 2 . . . Ballistic Gun 5 | . 14 11 6 . . . Ballistic Cannon 1 | . . . . . 5 . Launcher 2 | . . . 1 7 5 . Impact Weapon 2 | . . . 1 7 5 . Slashing Weapon 2 | . . . 4 5 . 5 Peak Build Rating 46 | 6 7 14 25 42 45 46 Average Rating 23 | 4 6 11 18 37 39 24 On Entrance 14 | . 6 7 14 25 42 10 Avg Prop Armor Cover (%) 5 | . . 2 5 . . 10 Naked Turns . | . . . . . . . Heaviest Build 76 | 12 14 40 42 73 76 57 Greatest Support 90 | 40 40 40 43 65 64 90 Greatest Overweight (x) 17 | 1 . 1 4 1 17 10 Average Overweight (x) . | . . . 1 . . 2 Largest Inventory Capacity 15 | 8 8 15 15 15 15 15 Average Capacity 13 | 7 8 11 15 15 15 15 Most Carried 15 | 2 6 11 14 15 9 9 Average Carried 6 | 1 2 8 8 9 7 3 Final Capacity 15 | 8 8 15 15 15 15 15 Final Carried 14 | 2 6 11 14 8 9 5 Class Distribution -------------------- 75% | Mutant 24% | Scavenger-Mutant Dominant Class ---------------- Mutant | -10/Materials Mutant | -9/Materials Mutant | -8/Materials Scavenger-Mutant | -7/Factory Mutant | -6/Factory Scavenger-Mutant | -6/Extension Resources | -11 -10 -9 -8 -7 -6 -6 ----------- Run | Yrd Mat Mat Mat Fac Fac Ext Matter Collected 1655 | 193 . 189 512 . 501 260 Remotely . | . . . . . . . Salvage Created 1704 | . . 208 512 . 623 361 Parts 93 | . . 16 29 . 36 12 Haulers Intercepted . | . . . . . . . Recyclers Shooed . | . . . . . . . Parts Field Recycled . | . . . . . . . Retrieved Matter . | . . . . . . . Parts Self-Destructed . | . . . . . . . Prevented . | . . . . . . . Parts Restored . | . . . . . . . Kills | -11 -10 -9 -8 -7 -6 -6 ------- Run | Yrd Mat Mat Mat Fac Fac Ext Combat Hostiles Destroyed 33 | . . 6 13 . 11 3 Melee 7 | . . . 4 . . 3 Guns 15 | . . 6 8 . 1 . Cannons 1 | . . . . . 1 . AOE 8 | . . . 1 . 7 . Classes Destroyed 12 | . . 4 2 . 6 . Worker 3 | . . . . . 3 . Builder 5 | . . . 1 . 4 . Recycler 2 | . . . . . 1 1 Mechanic 1 | . . . . . 1 . Watcher 3 | . . 1 . . 1 1 Swarmer 7 | . . 3 4 . . . Grunt 10 | . . 1 5 . 2 2 Brawler 1 | . . . . . 1 . Duelist 2 | . . . 1 . 1 . Sentry 7 | . . 2 3 . 1 1 Hunter 5 | . . . . . 5 . Programmer 1 | . . . . . 1 . Best Kill Streak 5 | . . 5 3 . 5 2 Combat Bots Only 3 | . . 3 3 . 3 1 Max Kills in Single Turn 3 | . . 1 1 . 3 1 Gunslinging . | . . . . . . . Exploded 3 | . . . 1 . 3 . Melee 1 | . . . 1 . . 1 Uniques/NPCs Destroyed . | . . . . . . . Combat | -11 -10 -9 -8 -7 -6 -6 -------- Run | Yrd Mat Mat Mat Fac Fac Ext Hostile Shots Fired 581 | . . 64 120 . 308 89 Missed 175 | . . 14 34 . 101 26 Hits 406 | . . 50 86 . 207 63 Melee 16 | . . . 10 . . 6 Projectile 390 | . . 50 76 . 207 57 Critical Strikes 9 | . . . 2 . 4 3 Actively Blocked 1 | . . . . . 1 . Damage Taken 6078 | . . 621 1395 . 3027 1035 Core 1307 | . . 173 268 . 659 207 Absorbed by Shields . | . . . . . . . Redirected to Shielding 38 | . . . . . 38 . Regen/Repaired (Parts) 185 | . . 122 63 . . . Core Remaining (%) 81 | 100 100 56 51 100 . . Volleys Fired 109 | . . 24 59 . 26 . Largest 2 | . . 2 2 . 2 . Hottest 76 | . . 60 76 . 73 . Shots Fired 156 | . . 48 70 . 38 . Gun 121 | . . 48 69 . 4 . Cannon 16 | . . . . . 16 . Launcher 19 | . . . 1 . 18 . Special . | . . . . . . . Kinetic 103 | . . 24 59 . 20 . Thermal 34 | . . 24 10 . . . Explosive 19 | . . . 1 . 18 . Electromagnetic . | . . . . . . . Robot Hit Streak 17 | . . 8 17 . 9 . Robot Miss Streak 6 | . . 6 5 . 2 . Penetration Max . | . . . . . . . Secondary Targets 4 | . . 4 . . . . Max Gunslinging Chain 1 | . . 1 . . . . Shots Hit Robots 143 | . . 34 57 . 36 16 Core Hits 91 | . . 14 31 . 37 9 Critical Kills . | . . . . . . . Critical Parts Destroyed 1 | . . . . . 1 . Critical Strikes 6 | . . . 2 . 1 3 Burn 1 | . . . 1 . . . Smash 1 | . . . . . 1 . Sever 4 | . . . 1 . . 3 Melee Attacks 41 | . . . 12 . 8 21 Impact 12 | . . . 4 . 8 . Slashing 29 | . . . 8 . . 21 Piercing . | . . . . . . . Sneak Attacks 3 | . . . . . 2 1 Combat Hostiles . | . . . . . . . Follow-up Attacks . | . . . . . . . Damage Inflicted 4192 | . . 310 856 . 2425 601 Guns 844 | . . 310 428 . 106 . Cannons 219 | . . . . . 219 . Explosions 1774 | . . . 79 . 1695 . Melee 1352 | . . . 346 . 405 601 Ramming 3 | . . . 3 . . . Kinetic 791 | . . 124 342 . 325 . Thermal 316 | . . 186 130 . . . Explosive 1730 | . . . 35 . 1695 . Electromagnetic . | . . . . . . . Impact 516 | . . . 111 . 405 . Slashing 836 | . . . 235 . . 601 Piercing . | . . . . . . . Highest Corruption 3 | . 3 . 3 . 1 1 Average Corruption 2 | . 2 . 3 . 1 1 Corruption Purged . | . . . . . . . Corruption Blocked . | . . . . . . . Effects 18 | . 1 . 15 . . 2 Message Errors 3 | . . . 3 . . . Matter Fused 5 | . . . 4 . . 1 Heat Flow Errors 1 | . . . 1 . . . Energy Discharges 2 | . . . 1 . . 1 Parts Rejected 2 | . . . 2 . . . Data Loss (minor) 3 | . 1 . 2 . . . Data Loss (major) 1 | . . . 1 . . . Misfires 1 | . . . 1 . . . Overload Shots . | . . . . . . . Overflow Damage 304 | . . . 34 . 270 . Projectiles 2 | . . . . . 2 . Explosions 112 | . . . 34 . 78 . Melee 190 | . . . . . 190 . Knockbacks 6 | . . . . . 6 . Impact 3 | . . . . . 3 . Kinetic 2 | . . . . . 2 . Secondary 1 | . . . . . 1 . Self-Inflicted Damage 343 | . . . 92 . 251 . Shots 8 | . . . 2 . 6 . Rammed 1 | . . . 1 . . . Targets Rammed 1 | . . . 1 . . . Kicked . | . . . . . . . Crushed . | . . . . . . . Highest Temperature 242 | . . 132 242 . 220 10 Average Temperature 63 | . . 38 95 . 60 8 Received Heat Transfer 1575 | . . 174 378 . 702 321 Siege Activations . | . . . . . . . Martial Activations . | . . . . . . . Shielding Activations . | . . . . . . . Robots Disrupted . | . . . . . . . Combat Hostiles . | . . . . . . . Robots Corrupted 4 | . . . . . 4 . Combat Hostiles 2 | . . . . . 2 . Parts Fried 4 | . . . . . 4 . Impact Corruptions 7 | . . . . . 7 . Robots Melted . | . . . . . . . Combat Hostiles . | . . . . . . . Parts Melted 3 | . . 1 2 . . . Heat Transferred 771 | . . 425 346 . . . Parts Sabotaged . | . . . . . . . Parts Stolen . | . . . . . . . Parts Stripped . | . . . . . . . Power Chain Reactions . | . . . . . . . Alert | -11 -10 -9 -8 -7 -6 -6 ------- Run | Yrd Mat Mat Mat Fac Fac Ext Maximum Alert Level . | . . . . . . . Low Security (%) 100 | 100 100 100 100 100 100 100 Level 1 . | . . . . . . . Level 2 . | . . . . . . . Level 3 . | . . . . . . . Level 4 . | . . . . . . . Level 5 . | . . . . . . . High Security . | . . . . . . . Max Security . | . . . . . . . Peak Influence 176 | . 7 77 176 68 163 42 Initial 68 | . . . . 68 . 23 Average 36 | . . 21 36 22 76 9 Influence Increases 1140 | . 7 166 418 . 445 104 Destroy 0b10 Robot/C 680 | . . 120 260 . 220 80 Destroy 0b10 Robot/NC 70 | . . 5 5 . 50 10 Destroy Leader 146 | . . 32 60 . 42 12 Allied During Kill 2 | . . . . . . 2 Successful Hack 29 | . 7 9 8 . 5 . Disable Machine 75 | . . . 45 . 30 . Destroy Structure 123 | . . . 25 . 98 . Lose Combat Pursuer 15 | . . . 15 . . . Influence Decreases 1120 | . 7 166 266 152 396 133 Entered New Map 110 | . . . . 84 . 26 Time Decay 805 | . 7 166 206 68 266 92 Lost Part 190 | . . . 60 . 130 . Lost Ally 15 | . . . . . . 15 Squads Dispatched 5 | . . 1 . . 4 . Investigation 1 | . . 1 . . . . Extermination 1 | . . . . . 1 . Reinforcement 3 | . . . . . 3 . Assault . | . . . . . . . Garrison . | . . . . . . . Intercept . | . . . . . . . Searches Triggered . | . . . . . . . Construction Impeded 1 | . . . . . 1 . Haulers Reinforced 1 | . . . . . 1 . Active Scanning Responses . | . . . . . . . Cargo Convoy Interrupts . | . . . . . . . Stealth | -11 -10 -9 -8 -7 -6 -6 --------- Run | Yrd Mat Mat Mat Fac Fac Ext Distress Signals 3 | . . . 1 . 2 . Communications Jammed . | . . . . . . . Distress Signals . | . . . . . . . Times Spotted 61 | . . 10 24 . 20 7 Peak Tracking Total 5 | . . 3 5 . 4 3 Tactical Retreats 6 | . . 1 3 . 2 . ECM-based Alert Blocks 7 | . . 1 2 . 4 . Traps | -11 -10 -9 -8 -7 -6 -6 ------- Run | Yrd Mat Mat Mat Fac Fac Ext Traps Triggered 6 | . 2 . . . . 4 Indirectly . | . . . . . . . Trap Hack Attempts . | . . . . . . . Triggered . | . . . . . . . Disarmed . | . . . . . . . Reprogrammed . | . . . . . . . Reused . | . . . . . . . Traps Extracted . | . . . . . . . Installed . | . . . . . . . Triggered . | . . . . . . . Machines | -11 -10 -9 -8 -7 -6 -6 ---------- Run | Yrd Mat Mat Mat Fac Fac Ext Machines Disabled 5 | . . . 3 . 2 . Max in Single Turn 3 | . . . 3 . 1 . Machines Repaired . | . . . . . . . Machines Dismantled . | . . . . . . . Machines Sabotaged . | . . . . . . . Overloaded Fab Kills . | . . . . . . . Hacking | -11 -10 -9 -8 -7 -6 -6 --------- Run | Yrd Mat Mat Mat Fac Fac Ext Machines Accessed 10 | . 2 2 2 . 2 2 Terminals 7 | . 2 1 1 . 1 2 Fabricators . | . . . . . . . Repair Stations 3 | . . 1 1 . 1 . Recycling Units . | . . . . . . . Scanalyzers . | . . . . . . . Garrison Access . | . . . . . . . Total Hacks 21 | . 4 6 6 . 3 2 Successful 14 | . 4 4 4 . 1 1 Failed 7 | . . 2 2 . 2 1 Catastrophic 1 | . . 1 . . . . Database Lockouts . | . . . . . . . Manual 3 | . 2 1 . . . . Terminals 11 | . 4 1 2 . 2 2 Fabricators . | . . . . . . . Repair Stations 10 | . . 5 4 . 1 . Recycling Units . | . . . . . . . Scanalyzers . | . . . . . . . Garrison Access . | . . . . . . . Terminal Hacks 7 | . 4 . 1 . 1 1 Record 1 | . 1 . . . . . Open Door 1 | . . . . . . 1 Open DSF 1 | . . . . . 1 . Branch Access Points 1 | . 1 . . . . . Alert Level 1 | . 1 . . . . . Zone Layout 2 | . 1 . 1 . . . Fabricator Hacks . | . . . . . . . Repair Station Hacks 7 | . . 4 3 . . . Scan Component 3 | . . 2 1 . . . Repair 2 | . . 1 1 . . . Refit 2 | . . 1 1 . . . Recycling Unit Hacks . | . . . . . . . Scanalyzer . | . . . . . . . Garrison Access Hacks . | . . . . . . . Unauthorized Hacks . | . . . . . . . Terminals . | . . . . . . . Fabricators . | . . . . . . . Repair Stations . | . . . . . . . Recycling Units . | . . . . . . . Scanalyzers . | . . . . . . . Garrison Access . | . . . . . . . Data Cores Recovered . | . . . . . . . Used . | . . . . . . . Hacking Detections 5 | . 1 2 . . 1 1 Full Trace Events 1 | . . 1 . . . . Feedback Events . | . . . . . . . Feedback Blocked . | . . . . . . . Robot Schematics Acquired . | . . . . . . . Robots Built . | . . . . . . . Authchips . | . . . . . . . Time . | . . . . . . . Total Robot Build Rating . | . . . . . . . Part Schematics Acquired . | . . . . . . . Parts Built . | . . . . . . . Authchips . | . . . . . . . Time . | . . . . . . . Total Part Build Rating . | . . . . . . . Part Studies Acquired . | . . . . . . . Parts Repaired 2 | . . 1 1 . . . Time 58 | . . 26 32 . . . Parts Recycled . | . . . . . . . Recycled Matter . | . . . . . . . Retrieved Matter . | . . . . . . . Retrieved Components . | . . . . . . . Parts Scanalyzed . | . . . . . . . Part Schematics Acquired . | . . . . . . . Parts Damaged . | . . . . . . . Bothacking | -11 -10 -9 -8 -7 -6 -6 ------------ Run | Yrd Mat Mat Mat Fac Fac Ext Used RIF Installer . | . . . . . . . Robots Hacked . | . . . . . . . Non-combat . | . . . . . . . Combat . | . . . . . . . Robot Hacks Applied . | . . . . . . . Relay Couplers Released . | . . . . . . . Fabnet Peak Effective % . | . . . . . . . Robots Rewired . | . . . . . . . Allies Hacked . | . . . . . . . Hacks Repelled . | . . . . . . . Allies | -11 -10 -9 -8 -7 -6 -6 -------- Run | Yrd Mat Mat Mat Fac Fac Ext Total Allies 1 | . . . . . . 1 Largest Group 1 | . . . . . . 1 Highest-Rated Group 25 | . . . . . . 25 Highest-Rated Ally 25 | . . . . . . 25 Total Orders . | . . . . . . . Ally Attacks 5 | . . . . . . 5 Total Damage 132 | . . . . . . 132 Kills 1 | . . . . . . 1 Allies Corrupted . | . . . . . . . Allies Melted . | . . . . . . . Intel | -11 -10 -9 -8 -7 -6 -6 ------- Run | Yrd Mat Mat Mat Fac Fac Ext Active Infowar (turns) 2772 | . 71 565 1016 237 883 . Optics 1648 | . . 492 1016 140 . . Terrain 548 | . . 347 1 . 200 . Traps 2000 | . . . 880 237 883 . ECM 2528 | . 71 565 816 193 883 . Robot Analysis Total . | . . . . . . . Derelict Logs Recovered . | . . . . . . . Drone Launches . | . . . . . . . Drone Recoveries . | . . . . . . . Exploration | -11 -10 -9 -8 -7 -6 -6 ------------- Run | Yrd Mat Mat Mat Fac Fac Ext Turns Passed 3555 | 93 264 565 1016 237 907 473 Spaces Moved 1588 | 54 162 262 450 127 375 158 Core 24 | 6 . . . . 11 7 Treads 1098 | 48 162 262 125 127 364 10 Legs 251 | . . . 193 . . 58 Wheels 173 | . . . 132 . . 41 Hover . | . . . . . . . Flight 42 | . . . . . . 42 Fastest Speed 50 | 50 160 160 123 153 153 115 Average Speed 190 | 152 160 181 179 171 215 232 Slowest Speed 900 | 160 160 240 330 233 900 550 Overloaded Moves . | . . . . . . . Propulsion Burnouts . | . . . . . . . Robots Hopped . | . . . . . . . Potential Cave-ins . | . . . . . . . Cave-ins Triggered . | . . . . . . . Exploration Rate (%) 19 | 4 30 20 40 4 11 29 Regions Visited 6 Branch Regions 1 Pre-discovered Areas . | . . . . . . . Known Exits Taken . | . . . . . . . Unknown Exits Taken 6 | 1 1 1 1 1 1 . Scrap Searched . | . . . . . . . Spaces Dug . | . . . . . . . Terrain Destroyed 153 | . . . 23 . 130 . Melee . | . . . . . . . Projectile . | . . . . . . . AOE 153 | . . . 23 . 130 . Terrain Rammed . | . . . . . . . Walls Destroyed . | . . . . . . . Machines Disabled . | . . . . . . . Actions | -11 -10 -9 -8 -7 -6 -6 --------- Run | Yrd Mat Mat Mat Fac Fac Ext Total 1891 | 62 166 307 569 148 418 221 Wait . | . . . . . . . Move 1582 | 53 161 261 449 126 374 158 Hop . | . . . . . . . Pick Up 26 | 3 4 6 8 2 1 2 Fast Attach 30 | 5 1 . 11 1 3 9 Attach 23 | 1 . 3 7 3 1 8 Detach 5 | . . 1 2 1 . 1 Swap 41 | . . 10 16 6 4 5 Drop 16 | . . 2 4 9 1 . Fire 109 | . . 24 59 . 26 . Melee 41 | . . . 12 . 8 21 Ram 1 | . . . 1 . . . Kick . | . . . . . . . Crush . | . . . . . . . Escape Stasis 16 | . . . . . . 16 Rewire 1 | . . . . . . 1 Trap . | . . . . . . . Miscellaneous . | . . . . . . . Route ------- -11/Scrapyard -10/Materials (discovered 2 exits: *Mat / Min) -9/Materials -8/Materials -7/Factory -6/Factory -6/Extension History --------- Turn | Location | Event 17 | -11/Scrapyard | Discovered new exit (range 16) 94 | -11/Scrapyard | Entered Materials 292 | -10/Materials | Identified exit to Mines 308 | -10/Materials | Build established: Mutant 313 | -10/Materials | Discovered new exit (range 13) 358 | -10/Materials | Entered another Materials area 358 | -9/Materials | Evolved 2 slots: Utility x2 784 | -9/Materials | Repaired Lgt. Treads? 856 | -9/Materials | Discovered new exit (range 12) 923 | -9/Materials | Entered another Materials area 923 | -8/Materials | Evolved 2 slots: Propulsion x1, Utility x1 1183 | -8/Materials | Lost 4 parts (2n2w) 1308 | -8/Materials | Repaired Imp. Ion Engine? 1936 | -8/Materials | Discovered new exit (range 3) 1939 | -8/Materials | Entered Factory 1939 | -7/Factory | Evolved 2 slots: Power x1, Weapon x1 2029 | -7/Factory | Discovered new exit (range 4) 2176 | -7/Factory | Entered another Factory area 2176 | -6/Factory | Evolved 2 slots: Propulsion x1, Utility x1 2994 | -6/Factory | Lost 4 parts (2n2w) 3002 | -6/Factory | Discovered new exit (range 14) 3060 | -6/Factory | Core integrity fell below 50% 3083 | -6/Factory | Entered Extension 3106 | -6/Extension | Lost 6 parts (1p3u2w) 3288 | -6/Extension | Core integrity fell below 20% 3345 | -6/Extension | Lost 5 parts (1p2n2u) 3412 | -6/Extension | Rescued a captive Derelict 3556 | -6/Extension | Destroyed by L-41 Fighter with Axe Last Messages --------------- An explosion rips through the floor. Terminal disabled. Connecting with Recycling Unit... 1Y-FYX(l) suffers critical hit (Burn). Triggered Heavy Explosive Trap. An explosion rips through the floor. Recycling Unit disabled. Adv. Field Recycling Unit tumbles out of recycling unit. 1Y-FYX(l) destroyed. Critical hit (Burn: +37). G-50 Soldier Carbon-fiber Leg severed. Imp. Ion Engine destroyed. R-10 Processor collects Ripper. R-10 Processor collects Carbon-fiber Leg. Critical hit (Burn: +37). Carbon-fiber Leg destroyed. Imp. Heat Sink destroyed. G-50 Soldier destroyed. [Achievement: 5k Club] Map ----- +----------------------------------------------------+ | | | | | | | | | | | | | | | | | | | | | | | | | | | | | | | | | | | | | | | | | ?????????????????????????????????????????????????? | | ????????????#######??????????????????????????????? | | ????????????# #??????????????????????????????? | | ############# #####################??????????? | | T""" % % g !!! ????????? | | ## ### l@=% !!! ????????? | | ## #?# R = !!! ????????? | | ### ### ????????? | | """ ###### # ?????????? | | """" #????# ?????????? | | #????# ??????????? | | #????# ### ??????????? | | """ ???# ## !!] ??????????? | | """" ##???### ! ### !!] ####???????????? | | #??????##" #?#### !]] #??????????????? | | #???????#"Y" #????? #??????????????? | | #???????#"""####????? #??????????????? | | #######???????#####????????##"Y"###??????????????? | | ?????????????????????????????"""#????????????????? | | ?????????????????????????????????????????????????? | | ?????????????????????????????????????????????????? | | ?????????????????????????????????????????????????? | | ?????????????????????????????????????????????????? | | ?????????????????????????????????????????????????? | | ?????????????????????????????????????????????????? | | ?????????????????????????????????????????????????? | | ?????????????????????????????????????????????????? | | ?????????????????????????????????????????????????? | | ?????????????????????????????????????????????????? | | ?????????????????????????????????????????????????? | +----------------------------------------------------+ Best States ------------- Heat Dissipation 51 Energy Generation 29 Energy Capacity 340 Matter Stores 500 Matter Capacity 750 Sight Range 18 Terrain Scan Range 14 Terrain Scan Density 110 ECM Strength 2 Armor Coverage 600 Resistance: EM 15 Core Shielding 20 Evasion (%) 55 Targeting Accuracy 5 Launcher Accuracy 20 Recoil Reduction 3 Item Schematics ----------------- None Robot Schematics ------------------ None Fabricated ------------ Nothing Repaired ---------- Lgt. Treads | 12% | -9/Materials Imp. Ion Engine | 10% | -8/Materials Studied --------- None Alien Tech Used ----------------- None Achievements -------------- 5k Club Crack Shot Fitting Room Made in Tau Ceti IV Novice Programmer Oops Overwhelming Power Corrupts That Tickles Challenges ------------ None Game ------ Seed FactoryDerelictRefractor Manual? 0 Play Time 00:53:34 Cumulative 2.2 hours Start 2025.12.21 @ 14:43:54 End 2025.12.21 @ 15:39:17 Sessions 1 Manual Loads 0 Difficulty Rogue Special Mode None Game No. 4 Rogue 4 Adventurer 0 Explorer 0 Win Type - Total 0 Types 0/0/0/0/0/0/0/0/0/0 Lore% 0 Gallery% 7 Achievement% 5 Wizard Run 0 Options --------- Layout 1 ASCII 0 Keyboard 0 Movement Mouse Keybinds 0 Fullscreen 1 Font 24/Smallcaps Map View 50x35 Zoom Use 0% Tactical HUD 0 Map Filters NONE Filters NONE Steam 1 RUN: eda3179a-4479-4b56-8e42-6f96587d2a71